fUSD/lending_fUSD_20260326
["ID","MTS","AMOUNT","RATE_DAILY","PERIOD"]
[418914999,1774535449195,-411.52386378,0.00015117,2]
[418915000,1774535449204,-500.0,0.00015117,2]
[418915001,1774535449214,-500.0,0.00015117,2]
[418915002,1774535449224,-500.0,0.00015117,2]
[418915003,1774535449233,-500.0,0.00015117,2]
[418915004,1774535449242,-500.0,0.00015117,2]
[418915005,1774535449251,-500.0,0.00015117,2]
[418915006,1774535449261,-500.0,0.00015117,2]
[418915007,1774535449271,-428.0,0.00015117,2]
[418915008,1774535449280,-501.89507537,0.00015117,2]
[418915009,1774535449290,-500.0,0.00015117,2]
[418915010,1774535449299,-428.0,0.00015117,2]
[418915011,1774535449308,-500.0,0.00015117,2]
[418915012,1774535449317,-428.0,0.00015117,2]
[418915013,1774535449326,-556.51792629,0.00015117,2]
[418915014,1774535449335,-428.0,0.00015117,2]
[418915015,1774535449344,-488.0,0.00015117,2]
[418915016,1774535449354,-428.0,0.00015117,2]
[418915017,1774535449363,-488.0,0.00015117,2]
[418915018,1774535449372,-428.0,0.00015117,2]
[418915019,1774535449382,-488.0,0.00015117,2]
[418915020,1774535449392,-428.0,0.00015117,2]
[418915021,1774535449402,-488.0,0.00015117,2]
[418915022,1774535449411,-428.0,0.00015117,2]
[418915023,1774535449420,-488.0,0.00015117,2]
[418915024,1774535449430,-428.0,0.00015117,2]
[418915025,1774535449440,-488.0,0.00015117,2]
[418915026,1774535449450,-428.0,0.00015117,2]
[418915027,1774535449459,-488.0,0.00015117,2]
[418915028,1774535449468,-428.0,0.00015117,2]
[418915029,1774535449478,-428.0,0.00015117,2]
[418915030,1774535449487,-428.0,0.00015117,2]
[418915031,1774535449496,-428.0,0.00015117,2]
[418915032,1774535449506,-428.0,0.00015117,2]
[418915033,1774535449517,-428.0,0.00015117,2]
[418915034,1774535449527,-488.0,0.00015117,2]
[418915035,1774535449539,-428.0,0.00015117,2]
[418915036,1774535449549,-488.0,0.00015117,2]
[418915037,1774535449559,-428.0,0.00015117,2]
[418915038,1774535449568,-428.0,0.00015117,2]
[418915039,1774535449577,-428.0,0.00015117,2]
[418915040,1774535449587,-488.0,0.00015117,2]
[418915041,1774535449596,-488.0,0.00015117,2]
[418915042,1774535449607,-488.0,0.00015117,2]
[418915043,1774535449616,-488.0,0.00015117,2]
[418915044,1774535449626,-488.0,0.00015117,2]
[418915045,1774535449635,-488.0,0.00015117,2]
[418915046,1774535449645,-488.0,0.00015117,2]
[418915047,1774535449655,-488.0,0.00015117,2]
[418915048,1774535449664,-428.0,0.00015117,2]
[418915049,1774535449673,-488.0,0.00015117,2]
[418915050,1774535449683,-488.0,0.00015117,2]
[418915051,1774535449692,-428.0,0.00015117,2]
[418915052,1774535449703,-488.0,0.00015117,2]
[418915053,1774535449712,-488.0,0.00015117,2]
[418915054,1774535449723,-428.0,0.00015117,2]
[418915055,1774535449733,-436.51872979,0.00015117,2]
[418915056,1774535449744,-488.0,0.00015117,2]
[418915057,1774535449754,-488.0,0.00015117,2]
[418915058,1774535449763,-500.72032213,0.00015117,2]
[418915059,1774535449772,-150.0,0.00015117,2]
[418915060,1774535449782,-150.0,0.00015117,2]
[418915061,1774535449846,-500.0,0.00015117,2]
[418915062,1774535449856,-150.0,0.00015117,2]
[418915063,1774535449864,-500.0,0.00015117,2]
[418915064,1774535449873,-282.81610969,0.00015117,2]
[418915065,1774535449882,-500.0,0.00015117,2]
[418915066,1774535449891,-500.0,0.00015117,2]
[418915067,1774535449901,-500.0,0.00015117,2]
[418915068,1774535449910,-500.0,0.00015117,2]
[418915069,1774535449919,-627.90943667,0.00015117,2]
[418915070,1774535449928,-500.0,0.00015117,2]
[418915071,1774535449938,-500.0,0.00015117,2]
[418915072,1774535449947,-500.0,0.00015117,2]
[418915073,1774535449956,-500.0,0.00015117,2]
[418915074,1774535449966,-500.0,0.00015117,2]
[418915075,1774535449975,-500.0,0.00015117,2]
[418915076,1774535449984,-500.0,0.00015117,2]
[418915077,1774535449993,-500.0,0.00015117,2]
[418915078,1774535450002,-500.0,0.00015117,2]
[418915079,1774535450011,-500.0,0.00015117,2]
[418915080,1774535450020,-500.0,0.00015117,2]
[418915081,1774535450029,-639.58784564,0.00015117,2]
[418915082,1774535450039,-500.0,0.00015117,2]
[418915083,1774535450049,-500.0,0.00015117,2]
[418915084,1774535450059,-500.0,0.00015117,2]
[418915085,1774535450068,-500.0,0.00015117,2]
[418915086,1774535450077,-500.0,0.00015117,2]
[418915087,1774535450087,-500.0,0.00015117,2]
[418915088,1774535450096,-643.67228165,0.00015117,2]
[418915089,1774535450106,-157.62886977,0.00015117,2]
[418915090,1774535450115,-500.0,0.00015117,2]
[418915091,1774535450125,-500.0,0.00015117,2]
[418915092,1774535450134,-500.0,0.00015117,2]
[418915093,1774535450144,-323.33316346,0.00015117,2]
[418915094,1774535450153,-500.0,0.00015117,2]
[418915095,1774535450162,-500.0,0.00015117,2]
[418915096,1774535450172,-500.0,0.00015117,2]
[418915097,1774535450182,-500.0,0.00015117,2]
[418915098,1774535450191,-500.0,0.00015117,2]
[418915099,1774535450200,-500.0,0.00015117,2]
[418915100,1774535450209,-500.0,0.00015117,2]
[418915101,1774535450219,-500.0,0.00015117,2]
[418915102,1774535450228,-500.0,0.00015117,2]
[418915103,1774535450237,-500.0,0.00015117,2]
[418915104,1774535450247,-500.0,0.00015117,2]
[418915105,1774535450256,-500.0,0.00015117,2]
[418915106,1774535450264,-500.0,0.00015117,2]
[418915107,1774535450274,-500.0,0.00015117,2]
[418915108,1774535450283,-500.0,0.00015117,2]
[418915109,1774535450292,-500.0,0.00015117,2]
[418915110,1774535450302,-500.0,0.00015117,2]
[418915111,1774535450311,-420.64571016,0.00015117,2]
[418915112,1774535450320,-500.0,0.0001512,2]
[418915113,1774535450329,-500.0,0.0001512,2]
[418915114,1774535450338,-500.0,0.0001512,2]
[418915115,1774535450348,-500.0,0.0001512,2]
[418915116,1774535450357,-500.0,0.0001512,2]
[418915117,1774535450366,-500.0,0.0001512,2]
[418915118,1774535450375,-500.0,0.0001512,2]
[418915119,1774535450385,-500.0,0.0001512,2]
[418915120,1774535450395,-500.0,0.0001512,2]
[418915121,1774535450405,-500.0,0.0001512,2]
[418915122,1774535450415,-500.0,0.0001512,2]
[418915123,1774535450424,-570.20962987,0.0001512,2]
[418915124,1774535450433,-500.0,0.0001512,2]
[418915125,1774535450442,-500.0,0.0001512,2]
[418915126,1774535450452,-500.0,0.0001512,2]
[418915127,1774535450461,-702.0,0.0001512,2]
[418915128,1774535450470,-500.0,0.0001512,2]
[418915129,1774535450479,-702.0,0.0001512,2]
[418915130,1774535450488,-500.0,0.0001512,2]
[418915131,1774535450499,-500.0,0.0001512,2]
[418915132,1774535450508,-702.0,0.0001512,2]
[418915133,1774535450517,-702.0,0.0001512,2]
[418915134,1774535450526,-500.0,0.0001512,2]
[418915135,1774535450536,-702.0,0.0001512,2]
[418915136,1774535450545,-566.20015322,0.0001512,2]
[418915137,1774535450555,-702.0,0.0001512,2]
[418915138,1774535450564,-702.0,0.0001512,2]
[418915139,1774535450573,-702.0,0.0001512,2]
[418915140,1774535450583,-702.0,0.0001512,2]
[418915141,1774535450593,-500.0,0.0001512,2]
[418915142,1774535450602,-702.0,0.0001512,2]
[418915143,1774535450611,-500.0,0.0001512,2]
[418915144,1774535450622,-702.0,0.0001512,2]
[418915145,1774535450632,-500.0,0.0001512,2]
[418915146,1774535450642,-702.0,0.0001512,2]
[418915147,1774535450652,-500.0,0.0001512,2]
[418915148,1774535450663,-702.0,0.0001512,2]
[418915149,1774535450674,-500.0,0.0001512,2]
[418915150,1774535450684,-702.0,0.0001512,2]
[418915151,1774535450693,-500.0,0.0001512,2]
[418915152,1774535450703,-702.0,0.0001512,2]
[418915153,1774535450714,-500.0,0.0001512,2]
[418915154,1774535450725,-702.0,0.0001512,2]
[418915155,1774535450734,-500.0,0.0001512,2]
[418915156,1774535450745,-500.0,0.0001512,2]
[418915157,1774535450754,-210.25009265,0.0001512,2]
[418915158,1774535450764,-702.0,0.0001512,2]
[418915159,1774535450774,-702.0,0.0001512,2]
[418915160,1774535450783,-702.0,0.0001512,2]
[418915161,1774535450793,-702.0,0.0001512,2]
[418915162,1774535450803,-702.0,0.0001512,2]
[418915163,1774535450811,-702.0,0.0001512,2]
[418915164,1774535450820,-702.0,0.0001512,2]
[418915165,1774535450830,-711.85750944,0.0001512,2]
[418915166,1774535450839,-500.0,0.00015123,2]
[418915167,1774535450849,-155.84481505,0.00015123,2]
[418915168,1774535450858,-500.0,0.00015123,2]
[418915169,1774535450867,-500.0,0.00015123,2]
[418915170,1774535450877,-500.0,0.00015123,2]
[418915171,1774535450886,-500.0,0.00015123,2]
[418915172,1774535450895,-500.0,0.00015123,2]
[418915173,1774535450904,-500.0,0.00015123,2]
[418915174,1774535450913,-500.0,0.00015123,2]
[418915175,1774535450922,-500.0,0.00015123,2]
[418915176,1774535450931,-150.0,0.00015123,2]
[418915177,1774535450939,-500.0,0.00015123,2]
[418915178,1774535450948,-500.0,0.00015123,2]
[418915179,1774535450958,-500.0,0.00015123,2]
[418915180,1774535450967,-500.0,0.00015123,2]
[418915181,1774535450976,-152.74342188,0.00015123,2]
[418915182,1774535450985,-500.0,0.00015123,2]
[418915183,1774535450995,-500.0,0.00015123,2]
[418915184,1774535451004,-170.40246758,0.00015123,2]
[418915185,1774535451014,-500.0,0.00015123,2]
[418915186,1774535451024,-500.0,0.00015123,2]
[418915187,1774535451033,-500.0,0.00015123,2]
[418915188,1774535451043,-500.0,0.00015123,2]
[418915189,1774535451052,-500.0,0.00015123,2]
[418915190,1774535451061,-378.87354826,0.00015123,2]
[418915191,1774535451071,-206.13980161,0.00015123,2]
[418915192,1774535451081,-500.0,0.00015123,2]
[418915193,1774535451090,-150.0,0.00015123,2]
[418915194,1774535451099,-214.58664017,0.00015123,2]
[418915195,1774535451109,-500.0,0.00015123,2]
[418915196,1774535451118,-500.0,0.00015123,2]
[418915197,1774535451127,-388.14313993,0.00015123,2]
[418915198,1774535451136,-500.0,0.00015123,2]
[418915199,1774535451145,-500.0,0.00015123,2]
[418915200,1774535451155,-500.0,0.00015123,2]
[418915201,1774535451164,-500.0,0.00015123,2]
[418915202,1774535451174,-343.66648939,0.00015123,2]
[418915203,1774535451183,-150.0,0.00015123,2]
[418915204,1774535451192,-207.61422289,0.00015123,2]
[418915205,1774535451201,-500.0,0.00015123,2]
[418915206,1774535451211,-500.0,0.00015123,2]
[418915207,1774535451220,-500.0,0.00015123,2]
[418915208,1774535451230,-500.0,0.00015123,2]
[418915209,1774535451239,-500.0,0.00015123,2]
[418915210,1774535451248,-519.63573752,0.00015123,2]
[418915211,1774535451257,-500.0,0.00015123,2]
[418915212,1774535451266,-500.0,0.00015123,2]
[418915213,1774535451276,-500.0,0.00015123,2]
[418915214,1774535451286,-500.0,0.00015123,2]
[418915215,1774535451295,-500.0,0.00015123,2]
[418915216,1774535451304,-500.0,0.00015123,2]
[418915217,1774535451314,-500.0,0.00015123,2]
[418915218,1774535451323,-500.0,0.00015123,2]
[418915219,1774535451333,-500.0,0.00015123,2]
[418915220,1774535451343,-500.0,0.00015123,2]
[418915221,1774535451352,-500.0,0.00015123,2]
[418915222,1774535451361,-501.45238975,0.00015123,2]
[418915223,1774535451371,-500.0,0.00015123,2]
[418915224,1774535451380,-500.0,0.00015123,2]
[418915225,1774535451389,-472.44900088,0.00015123,2]
[418915226,1774535451400,-188.551353,0.00015123,2]
[418915227,1774535451410,-188.551353,0.00015123,2]
[418915228,1774535451420,-188.551353,0.00015123,2]
[418915229,1774535451429,-188.551353,0.00015123,2]
[418915230,1774535451439,-604.16,0.00015125,2]
[418915231,1774535451449,-182.91,0.00015133,2]
[418915232,1774535451458,-305.66096444,0.00015166,7]
[418915233,1774535451467,-166.32485968,0.00015173,2]
[418915234,1774535451477,-500.0,0.00015173,2]
[418915235,1774535451486,-548.08973454,0.00015173,2]
[418915236,1774535451498,-341.1282,0.000152,2]
[418915237,1774535451508,-350.0,0.00015237,2]
[418915238,1774535451517,-1788.38122651,0.00015277,2]
[418915239,1774535451526,-1903.86,0.000153,2]
[418915240,1774535451535,-1895.4,0.000153,2]
[418915241,1774535451544,-53101.6367672,0.00015322,2]
[418915242,1774535451553,-178.561689,0.00015333,2]
[418915243,1774535451563,-178.561689,0.00015333,2]
[418915244,1774535451573,-178.561689,0.00015333,2]
[418915245,1774535451582,-178.561689,0.00015333,2]
[418915246,1774535451592,-1238.56,0.00015342,2]
[418915247,1774535451600,-2000.0,0.00015342,2]
[418915248,1774535451610,-1889.39669243,0.00015342,2]
[418915249,1774535451619,-2000.0,0.00015342,2]
[418915250,1774535451629,-2000.0,0.00015342,2]
[418915251,1774535451638,-500.89802882,0.00015342,2]
[418915252,1774535451647,-2000.0,0.00015342,2]
[418915253,1774535451656,-502.73579383,0.00015342,2]
[418915254,1774535451665,-294.8,0.0001535,2]
[418915255,1774535451673,-61298.02581253,0.00015356,2]
[418915256,1774535451682,-1371.774132,0.00015358,7]
[418915257,1774535451692,-762.436174,0.00015358,7]
[418915258,1774535451701,-151.0,0.00015367,2]
[418915259,1774535451710,-366.77663085,0.00015395,2]
[418915260,1774535451719,-1252.0,0.00015446,2]
[418915261,1774535451729,-792.42,0.00015459,2]
[418915262,1774535451738,-792.42,0.00015459,2]
[418915263,1774535451747,-792.42,0.00015459,2]
[418915264,1774535451757,-761.59441621,0.00015459,2]
[418915265,1774535452122,-575.92133109,0.00015114,2]
[418915266,1774535452131,-480.0,0.00015114,2]
[418915267,1774535452141,-150.0,0.00015114,2]
[418915268,1774535452150,-548.0,0.00015114,2]
[418915269,1774535452159,-30.82558379,0.00015459,2]
[418915270,1774535452169,-792.5124405,0.00015459,2]
[418915271,1774535452179,-151.0,0.00015459,2]
[418915272,1774535452188,-151.0,0.00015459,2]
[418915273,1774535452198,-151.0,0.00015459,2]
[418915274,1774535452208,-154.786488,0.00015459,2]
[418915275,1774535452218,-887.693296,0.00015459,2]
[418915276,1774535452227,-887.693296,0.00015459,2]
[418915277,1774535452237,-887.693296,0.00015459,2]
[418915278,1774535452246,-887.693296,0.00015459,2]
[418915279,1774535452256,-151.0,0.00015459,2]
[418915280,1774535452267,-350.0,0.00015502,2]
[418915281,1774535452276,-4000.0,0.00015507,2]
[418915282,1774535452286,-1152.0,0.00015575,2]
[418915283,1774535452296,-2601.05,0.00015595,2]
[418915284,1774535452306,-3674.84,0.00015595,2]
[418915285,1774535452315,-5235.63,0.00015595,2]
[418915286,1774535452325,-46615.46,0.00015595,2]
[418915287,1774535452334,-1238.61654453,0.00015616,2]
[418915288,1774535452346,-4609.0,0.00015617,2]
[418915289,1774535452356,-155.08,0.00015622,2]
[418915290,1774535452366,-150.0,0.00015672,30]
[418915291,1774535452377,-1693.96,0.00015675,2]
[418915292,1774535452386,-2219.37090484,0.0001568,2]
[418915293,1774535452396,-500.0,0.00015692,2]
[418915294,1774535452405,-540.46,0.000157,2]
[418915295,1774535452415,-65639.91909991,0.000157,2]
[418915296,1774535452431,-1337.79988137,0.000157,2]
[418915297,1774535452442,-7765.24741519,0.000157,2]
[418915298,1774535452456,-687.31375206,0.000157,2]
[418915299,1774535452467,-883.66989765,0.000157,2]
[418915300,1774535452497,-1854.2033079,0.000157,2]
[418915301,1774535452509,-680.76275655,0.000157,2]
[418915302,1774535452541,-52689.09693046,0.000157,2]
[418915303,1774535452551,-503.0,0.00015714,3]
[418915304,1774535452561,-1000.0,0.00015718,2]
[418915305,1774535452571,-500.85155912,0.00015721,2]
[418915306,1774535452581,-1000.0,0.00015722,2]
[418915307,1774535452595,-1000.0,0.00015735,2]
[418915308,1774535452605,-249.0,0.00015753,2]
[418915309,1774535452615,-350.0,0.00015768,2]
[418915310,1774535452626,-1000.0,0.00015773,2]
[418915311,1774535452636,-1000.0,0.00015795,2]
[418915312,1774535452646,-5888.0,0.00015796,2]
[418915313,1774535452655,-2337.78,0.000158,2]
[418915314,1774535452665,-11618.08,0.000158,2]
[418915315,1774535452675,-5888.0,0.00015801,2]
[418915316,1774535452684,-1000.0,0.00015802,2]
[418915317,1774535452695,-1019.959606,0.00015811,2]
[418915318,1774535452704,-1019.959606,0.00015811,2]
[418915319,1774535452715,-1019.959606,0.00015811,2]
[418915320,1774535452724,-1019.959606,0.00015811,2]
[418915321,1774535452733,-1262.0,0.00015811,2]
[418915322,1774535452743,-924.0,0.00015811,2]
[418915323,1774535452753,-1216.0,0.00015811,2]
[418915324,1774535452763,-1045.0,0.00015811,2]
[418915325,1774535452773,-621.0,0.00015811,2]
[418915326,1774535452782,-6011.0,0.00015811,2]
[418915327,1774535452792,-251.24357769,0.00015824,2]
[418915328,1774535452802,-1854.55133189,0.00015825,2]
[418915329,1774535452811,-1000.0,0.00015831,2]
[418915330,1774535452822,-1000.0,0.00015831,2]
[418915331,1774535452831,-604.16,0.00015833,2]
[418915332,1774535452842,-604.16,0.00015833,2]
[418915333,1774535452852,-500.0,0.00015833,2]
[418915334,1774535452862,-500.0,0.00015833,2]
[418915335,1774535452873,-500.0,0.00015833,2]
[418915336,1774535452883,-500.0,0.00015833,2]
[418915337,1774535452892,-500.0,0.00015833,2]
[418915338,1774535452903,-500.0,0.00015833,2]
[418915339,1774535452913,-500.0,0.00015833,2]
[418915340,1774535452922,-500.0,0.00015833,2]
[418915341,1774535452933,-500.0,0.00015833,2]
[418915342,1774535452943,-500.0,0.00015833,2]
[418915343,1774535452952,-500.0,0.00015833,2]
[418915344,1774535452963,-500.0,0.00015833,2]
[418915345,1774535452972,-500.0,0.00015833,2]
[418915346,1774535452982,-500.0,0.00015833,2]
[418915347,1774535452992,-500.0,0.00015833,2]
[418915348,1774535453001,-500.0,0.00015833,2]
[418915349,1774535453011,-500.0,0.00015833,2]
[418915350,1774535453020,-214.95038261,0.00015833,2]
[418915351,1774535453030,-122576.61395153,0.00015834,2]
[418915352,1774535453043,-960.36619222,0.00015834,2]
[418915353,1774535453180,-480.0,0.00015114,2]
[418915354,1774535453190,-548.0,0.00015114,2]
[418915355,1774535453199,-395.40184853,0.0001568,2]
[418915356,1774535453212,-604.59815147,0.0001568,2]
[418915357,1774535453221,-1000.0,0.0001568,2]
[418915358,1774535453231,-1000.0,0.0001568,2]
[418915359,1774535453241,-11501.77104725,0.00015834,2]
[418915360,1774535453252,-12530.1074339,0.00015834,2]
[418915361,1774535453261,-189565.54886338,0.00015834,2]
[418915362,1774535453274,-110894.9999985,0.00015834,2]
[418915363,1774535453285,-864.55,0.00015834,2]
[418915364,1774535453301,-812.71056346,0.00015834,2]
[418915365,1774535453317,-431.885,0.00015834,2]
[418915366,1774535453333,-336.53812,0.0001568,2]
[418915367,1774535453354,-663.46188,0.0001568,2]
[418915368,1774535453364,-460.25051335,0.00015834,2]
[418915411,1774535972338,-379.15,0.00010072,2]
[418915412,1774535972368,-193.0,0.0001037,2]
[418915413,1774535972398,-500.0,0.00010668,2]
[418915414,1774535972428,-500.0,0.00010668,2]
[418915415,1774535972448,-379.15,0.00010668,2]
[418915416,1774535972460,-120.85,0.00010668,2]
[418915417,1774535972469,-72.15,0.00010668,2]
[418915418,1774535972484,-427.85,0.00010668,2]
[418915419,1774535972495,-72.15,0.00010959,2]
[418915420,1774535972506,-77.85,0.00010959,2]
[418915421,1774535972515,-153.13021192,0.00011079,2]
[418915422,1774535972525,-193.0,0.00011079,2]
[418915423,1774535972535,-76.01978808,0.00011143,2]
[418915424,1774535972546,-89.54198305,0.00011143,2]
[418915425,1774535972556,-266.15801695,0.00011526,4]
[418915426,1774536001622,-133.84198305,0.00011526,4]
[418915427,1774536001655,-300.0,0.00011714,2]
[418915428,1774536001686,-250.0,0.00011715,2]
[418915429,1774536001717,-250.0,0.00011735,2]
[418915430,1774536001739,-133.84198305,0.00012353,2]
[418915431,1774536001751,-116.15801695,0.00012353,2]
[418915432,1774536001760,-183.84198305,0.00012727,2]
[418915433,1774536001777,-250.0,0.00012727,2]
[418915434,1774536001789,-250.0,0.00012727,2]
[418915435,1774536001804,-132.3160339,0.00012727,2]
[418915436,1774536335131,-155.5900912,0.00010664,2]
[418915437,1774536428098,-186.9199088,0.00010664,2]
[418915438,1774536428120,-157.29057424,0.00010865,2]
[418915443,1774536632283,-92.70942576,0.00010865,2]
[418915445,1774536632292,-640.28,0.00011067,2]
[418915446,1774536632302,-162.7,0.00011067,2]
[418915447,1774536632312,-400.0,0.00011117,4]
[418915448,1774536632321,-156.70313704,0.00011186,2]
[418915449,1774536632330,-173.89,0.00011421,2]
[418915450,1774536632339,-250.0,0.0001173,2]
[418915451,1774536632349,-88.34165309,0.00012607,2]
[418915456,1774536632461,-890.82501358,0.00012607,2]
[418915458,1774536632470,-81.08874631,0.00012607,2]
[418915460,1774536632484,-78.91125369,0.00012607,2]
[418915461,1774536632494,-250.0,0.00013,2]
[418915462,1774536632503,-300.0,0.00013246,2]
[418915463,1774536632513,-1200.0,0.00013246,2]
[418915464,1774536632522,-151.0,0.00013247,2]
[418915465,1774536632532,-151.0,0.00013247,2]
[418915466,1774536632541,-151.0,0.00013247,2]
[418915467,1774536632551,-151.0,0.00013247,2]
[418915468,1774536632560,-151.0,0.00013247,2]
[418915469,1774536632569,-151.0,0.00013247,2]
[418915470,1774536632579,-151.0,0.00013247,2]
[418915471,1774536632588,-151.0,0.00013247,2]
[418915472,1774536632598,-1337.30371513,0.00013247,2]
[418915473,1774536632607,-151.0,0.00013247,2]
[418915474,1774536632616,-151.0,0.00013247,2]
[418915475,1774536632625,-151.0,0.00013247,2]
[418915476,1774536632635,-151.0,0.00013247,2]
[418915477,1774536632644,-150.0,0.00013254,2]
[418915478,1774536632654,-999.01303118,0.00013255,2]
[418915479,1774536632666,-2097.6,0.00013255,2]
[418915480,1774536632713,-419.38696882,0.00013255,2]
[418915481,1774536632722,-297.38378408,0.00013255,2]
[418915482,1774536632755,-735.90085166,0.00013255,2]
[418915483,1774536638283,-311.71536426,0.00013255,2]
[418915484,1774536638294,-1045.0,0.00013255,2]
[418915485,1774536638304,-621.0,0.00013255,2]
[418915486,1774536638324,-1262.0,0.00013255,2]
[418915487,1774536638334,-418.463,0.00013255,2]
[418915488,1774536638344,-3763.0,0.00013255,2]
[418915489,1774536638354,-1600.0,0.00013504,2]
[418915490,1774536638363,-292.54,0.00013578,2]
[418915491,1774536638373,-288.36,0.00013687,2]
[418915492,1774536638383,-200.0,0.00013687,2]
[418915493,1774536638393,-500.0,0.00013698,2]
[418915494,1774536638403,-500.0,0.00013698,2]
[418915495,1774536638413,-500.0,0.00013698,2]
[418915496,1774536638422,-500.0,0.00013698,2]
[418915497,1774536638432,-500.0,0.00013698,2]
[418915498,1774536638441,-500.0,0.00013698,2]
[418915499,1774536638451,-638.85441621,0.00013698,2]
[418915500,1774536638461,-150.0,0.00013699,2]
[418915501,1774536638471,-150.99,0.00013699,2]
[418915502,1774536638480,-299.99,0.00013699,2]
[418915503,1774536638490,-361.99,0.00013699,2]
[418915504,1774536638500,-2000.0,0.00013776,2]
[418915505,1774536638510,-177.54,0.0001378,2]
[418915506,1774536638520,-1386.78395259,0.00013795,2]
[418915507,1774536638530,-200.0,0.00013834,2]
[418915508,1774536638540,-834.02,0.00013855,2]
[418915509,1774536638549,-150.0,0.000139,2]
[418915510,1774536638559,-503.0,0.00014,2]
[418915511,1774536638568,-166.66,0.00014056,2]
[418915512,1774536638578,-1438.09495884,0.00014343,2]
[418915513,1774536638589,-166.66,0.00014352,2]
[418915514,1774536638599,-250.0,0.00014357,2]
[418915515,1774536638609,-255.0,0.00014367,2]
[418915516,1774536638618,-500.0,0.00014417,2]
[418915517,1774536638628,-500.0,0.00014417,2]
[418915518,1774536638637,-500.0,0.00014417,2]
[418915519,1774536638647,-500.0,0.00014417,2]
[418915521,1774536638657,-500.0,0.00014417,2]
[418915523,1774536638666,-500.0,0.00014417,2]
[418915525,1774536638676,-500.0,0.00014417,2]
[418915527,1774536638685,-500.0,0.00014417,2]
[418915529,1774536638694,-500.0,0.00014417,2]
[418915531,1774536638704,-500.0,0.00014417,2]
[418915533,1774536638714,-500.0,0.00014417,2]
[418915537,1774536638723,-500.0,0.00014417,2]
[418915539,1774536638733,-420.0,0.00014522,2]
[418915541,1774536638742,-1680.0,0.0001457,2]
[418915543,1774536638752,-1000.0,0.000146,2]
[418915545,1774536638761,-166.66,0.00014648,2]
[418915547,1774536638770,-500.0,0.00014849,2]
[418915549,1774536638781,-500.0,0.00014849,2]
[418915551,1774536638790,-500.0,0.00014849,2]
[418915553,1774536638799,-500.0,0.00014849,2]
[418915555,1774536638809,-500.0,0.00014849,2]
[418915557,1774536638818,-500.0,0.00014849,2]
[418915559,1774536638827,-500.0,0.00014849,2]
[418915561,1774536638837,-500.0,0.00014849,2]
[418915563,1774536638846,-500.0,0.00014849,2]
[418915565,1774536638856,-500.0,0.00014849,2]
[418915567,1774536638865,-500.0,0.00014849,2]
[418915569,1774536638874,-500.0,0.00014849,2]
[418915571,1774536638884,-500.0,0.00014849,2]
[418915573,1774536638894,-636.32167353,0.00014849,2]
[418915575,1774536638904,-500.0,0.00014849,2]
[418915577,1774536638913,-566.20015322,0.00014849,2]
[418915579,1774536638924,-500.0,0.00014849,2]
[418915582,1774536638938,-500.0,0.00014849,2]
[418915584,1774536638948,-500.0,0.00014849,2]
[418915586,1774536638958,-500.0,0.00014849,2]